fUSD/lending_fUSD_20240225
["ID","MTS","AMOUNT","RATE_DAILY","PERIOD"]
[315147383,1708889434368,-500.94,0.00023799,2]
[315147385,1708889434378,-500.0,0.00023799,2]
[315147387,1708889434387,-500.0,0.00023799,2]
[315147389,1708889434397,-528.81235943,0.00023799,2]
[315147391,1708889434407,-500.0,0.00023799,2]
[315147393,1708889434417,-500.0,0.00023799,2]
[315147395,1708889434426,-500.0,0.00023799,2]
[315147397,1708889434436,-500.0,0.00023799,2]
[315147399,1708889434446,-500.0,0.00023799,2]
[315147401,1708889434457,-500.0,0.00023799,2]
[315147403,1708889434467,-500.0,0.00023799,2]
[315147405,1708889434477,-500.0,0.00023799,2]
[315147407,1708889434486,-500.0,0.00023799,2]
[315147409,1708889434496,-516.50135405,0.00023799,2]
[315147411,1708889434506,-500.0,0.00023799,2]
[315147413,1708889434519,-419.17078267,0.000238,2]
[315147415,1708889434529,-952.5471,0.000238,2]
[315147418,1708889434538,-81818.0766,0.000238,2]
[315147419,1708889434548,-175.2957782,0.000238,2]
[315147420,1708889434558,-922.42644818,0.000238,2]
[315147421,1708889434568,-419.17078267,0.000238,2]
[315147422,1708889434578,-150.0,0.00023802,2]
[315147423,1708889434587,-150.0,0.00023803,2]
[315147424,1708889434597,-150.0,0.00023803,2]
[315147425,1708889434607,-300.0,0.00023805,2]
[315147426,1708889434617,-150.0,0.00023807,2]
[315147427,1708889434627,-200.0,0.00023808,2]
[315147428,1708889434638,-200.0,0.00023808,2]
[315147429,1708889434648,-300.0,0.00023808,2]
[315147430,1708889434658,-150.0,0.00023809,2]
[315147431,1708889434668,-922.42644818,0.00023809,2]
[315147432,1708889434677,-3961.96881349,0.0002381,2]
[315147433,1708889434687,-300.0,0.00023814,2]
[315147434,1708889434696,-224.95228755,0.00023817,2]
[315147435,1708889434706,-922.42644818,0.00023818,2]
[315147436,1708889434716,-150.0,0.00023819,2]
[315147437,1708889434725,-150.0,0.0002382,2]
[315147438,1708889434735,-150.0,0.0002382,2]
[315147439,1708889434745,-150.0,0.00023827,2]
[315147440,1708889434755,-922.42644818,0.00023827,2]
[315147441,1708889434765,-150.0,0.00023828,2]
[315147442,1708889434775,-150.0,0.00023829,2]
[315147443,1708889434784,-152.27,0.00023831,2]
[315147444,1708889435063,-160.65538402,0.00023832,2]
[315147445,1708889435074,-3961.96881349,0.00023833,2]
[315147446,1708889435084,-300.0,0.00023833,2]
[315147447,1708889435094,-150.0,0.00023835,2]
[315147448,1708889435104,-819.280819,0.00023835,2]
[315147449,1708889435114,-922.42644818,0.00023836,2]
[315147450,1708889435124,-150.0,0.00023839,2]
[315147451,1708889435133,-1500.0,0.0002384,2]
[315147452,1708889435143,-150.0,0.00023843,2]
[315147453,1708889435153,-150.0,0.00023844,2]
[315147454,1708889435162,-922.42644818,0.00023845,2]
[315147455,1708889435172,-150.0,0.00023846,2]
[315147456,1708889435181,-922.42644818,0.00023855,2]
[315147457,1708889435191,-3961.96881349,0.00023855,2]
[315147458,1708889435200,-150.0,0.00023857,2]
[315147459,1708889435210,-150.0,0.00023861,2]
[315147460,1708889435219,-922.42644818,0.00023864,2]
[315147461,1708889435230,-150.0,0.00023864,2]
[315147462,1708889435242,-300.0,0.00023864,2]
[315147463,1708889435251,-150.0,0.00023867,2]
[315147464,1708889435261,-150.0,0.00023868,2]
[315147465,1708889435271,-205.0,0.0002387,2]
[315147466,1708889435282,-922.42644818,0.00023873,2]
[315147467,1708889435292,-150.0,0.00023875,2]
[315147468,1708889435301,-3961.96881349,0.00023878,2]
[315147469,1708889435311,-150.0,0.0002388,2]
[315147470,1708889435321,-922.42644818,0.00023882,2]
[315147471,1708889435330,-5800.0,0.00023883,2]
[315147472,1708889435340,-150.0,0.00023884,2]
[315147473,1708889435349,-211.0,0.00023885,2]
[315147474,1708889435360,-150.0,0.00023885,2]
[315147475,1708889435371,-150.0,0.00023887,2]
[315147476,1708889435381,-150.0,0.00023888,2]
[315147477,1708889435390,-206.76338398,0.00023888,2]
[315147478,1708889435400,-1040.0,0.0002389,2]
[315147479,1708889435410,-150.0,0.0002389,2]
[315147480,1708889435421,-150.0,0.0002389,2]
[315147481,1708889435431,-922.42644818,0.00023891,2]
[315147482,1708889435442,-5800.0,0.00023892,2]
[315147483,1708889435453,-242.25,0.00023892,2]
[315147484,1708889435464,-150.0,0.00023893,2]
[315147485,1708889435474,-150.0,0.00023895,2]
[315147486,1708889435486,-500.0,0.00023896,2]
[315147487,1708889435498,-503.796049,0.00023896,2]
[315147488,1708889435515,-504.51604818,0.00023896,2]
[315147489,1708889435527,-503.1125285,0.00023896,2]
[315147490,1708889435538,-502.9531963,0.00023896,2]
[315147491,1708889435549,-500.0,0.00023896,2]
[315147492,1708889435560,-500.0,0.00023896,2]
[315147493,1708889435571,-500.0,0.00023896,2]
[315147494,1708889435583,-198.08338149,0.00023896,2]
[315147495,1708889435593,-500.0,0.00023896,2]
[315147496,1708889435603,-500.0,0.00023896,2]
[315147497,1708889435613,-500.0,0.00023896,2]
[315147498,1708889435623,-502.34984282,0.00023896,2]
[315147499,1708889435633,-500.0,0.00023896,2]
[315147500,1708889435643,-503.33794776,0.00023896,2]
[315147501,1708889435652,-504.74970059,0.00023896,2]
[315147502,1708889435662,-500.0,0.00023896,2]
[315147503,1708889435671,-500.0,0.00023896,2]
[315147504,1708889435681,-505.61122634,0.00023896,2]
[315147505,1708889435690,-500.0,0.00023896,2]
[315147506,1708889435700,-189.17339712,0.00023896,2]
[315147507,1708889435710,-500.0,0.00023896,2]
[315147508,1708889435719,-505.03246782,0.00023896,2]
[315147509,1708889435729,-154.02102569,0.00023896,2]
[315147510,1708889435739,-506.40161408,0.00023896,2]
[315147511,1708889435748,-500.0,0.00023896,2]
[315147512,1708889435758,-501.58865959,0.00023896,2]
[315147513,1708889435768,-501.89050517,0.00023896,2]
[315147514,1708889435778,-500.0,0.00023896,2]
[315147515,1708889435787,-500.0,0.00023896,2]
[315147516,1708889435797,-500.0,0.00023896,2]
[315147517,1708889435807,-537.6375697,0.00023896,2]
[315147518,1708889435816,-500.0,0.00023896,2]
[315147519,1708889435825,-500.0,0.00023896,2]
[315147520,1708889435835,-500.0,0.00023896,2]
[315147521,1708889435845,-500.0,0.00023896,2]
[315147522,1708889435855,-500.0,0.00023896,2]
[315147523,1708889435864,-500.0,0.00023896,2]
[315147524,1708889435874,-500.0,0.00023896,2]
[315147525,1708889435883,-500.0,0.00023896,2]
[315147526,1708889435893,-500.0,0.00023896,2]
[315147527,1708889435903,-500.0,0.00023896,2]
[315147528,1708889435914,-246.72723287,0.00023896,2]
[315147529,1708889435924,-500.0,0.00023896,2]
[315147530,1708889435934,-500.0,0.00023896,2]
[315147531,1708889435944,-500.0,0.00023896,2]
[315147532,1708889435954,-500.0,0.00023896,2]
[315147533,1708889435964,-500.0,0.00023896,2]
[315147534,1708889435974,-500.0,0.00023896,2]
[315147535,1708889435985,-500.0,0.00023896,2]
[315147536,1708889435995,-500.0,0.00023896,2]
[315147537,1708889436006,-150.0,0.00023896,2]
[315147538,1708889436016,-500.0,0.00023896,2]
[315147539,1708889436025,-555.27,0.00023896,2]
[315147540,1708889436036,-500.0,0.00023896,2]
[315147541,1708889436045,-500.0,0.00023896,2]
[315147542,1708889436056,-500.0,0.00023896,2]
[315147543,1708889436066,-500.0,0.00023896,2]
[315147544,1708889436075,-500.0,0.00023896,2]
[315147545,1708889436085,-500.0,0.00023896,2]
[315147546,1708889436095,-500.0,0.00023896,2]
[315147547,1708889436105,-502.40560353,0.00023896,2]
[315147548,1708889436115,-500.0,0.00023896,2]
[315147549,1708889436125,-500.0,0.00023896,2]
[315147550,1708889436134,-500.0,0.00023896,2]
[315147551,1708889436144,-386.75,0.00023896,2]
[315147552,1708889436153,-500.0,0.00023896,2]
[315147553,1708889436163,-500.0,0.00023896,2]
[315147554,1708889436172,-500.0,0.00023896,2]
[315147555,1708889436181,-500.0,0.00023896,2]
[315147556,1708889436190,-500.0,0.00023896,2]
[315147557,1708889436200,-513.85771234,0.00023896,2]
[315147558,1708889436209,-500.0,0.00023896,2]
[315147559,1708889436219,-501.39699087,0.00023896,2]
[315147560,1708889436229,-500.0,0.00023896,2]
[315147561,1708889436239,-500.0,0.00023896,2]
[315147562,1708889436249,-576.97,0.00023896,2]
[315147563,1708889436260,-500.0,0.00023896,2]
[315147564,1708889436270,-500.0,0.00023896,2]
[315147565,1708889436280,-500.0,0.00023896,2]
[315147566,1708889436290,-500.0,0.00023896,2]
[315147567,1708889436299,-542.38,0.00023896,2]
[315147568,1708889436309,-500.0,0.00023896,2]
[315147569,1708889436319,-500.0,0.00023896,2]
[315147570,1708889436332,-346.57191476,0.00023896,2]
[315147571,1708889436352,-176.77659606,0.00023896,2]
[315147572,1708889436363,-500.0,0.00023896,2]
[315147573,1708889436373,-500.0,0.00023896,2]
[315147574,1708889436384,-500.0,0.00023896,2]
[315147575,1708889436394,-500.0,0.00023896,2]
[315147576,1708889436405,-500.0,0.00023896,2]
[315147577,1708889436416,-500.0,0.00023896,2]
[315147578,1708889436427,-500.0,0.00023896,2]
[315147579,1708889436438,-500.0,0.00023896,2]
[315147580,1708889436450,-500.0,0.00023896,2]
[315147581,1708889436460,-500.0,0.00023896,2]
[315147582,1708889436471,-500.0,0.00023896,2]
[315147583,1708889436482,-500.0,0.00023896,2]
[315147584,1708889436493,-500.0,0.00023896,2]
[315147585,1708889436503,-500.0,0.00023896,2]
[315147586,1708889436514,-500.0,0.00023896,2]
[315147587,1708889436524,-535.87462763,0.00023896,2]
[315147588,1708889436535,-500.0,0.00023896,2]
[315147589,1708889436545,-500.0,0.00023896,2]
[315147590,1708889436555,-500.0,0.00023896,2]
[315147591,1708889436565,-500.0,0.00023896,2]
[315147592,1708889436576,-500.0,0.00023896,2]
[315147593,1708889436586,-227.97438508,0.00023896,2]
[315147594,1708889436599,-272.02561492,0.00023896,2]
[315147595,1708889436609,-500.0,0.00023896,2]
[315147596,1708889436622,-500.0,0.00023896,2]
[315147597,1708889436632,-500.0,0.00023896,2]
[315147598,1708889436642,-300.35791958,0.00023896,2]
[315147599,1708889436664,-203.53982824,0.00023896,2]
[315147600,1708889436674,-500.0,0.00023896,2]
[315147601,1708889436685,-503.45911397,0.00023896,2]
[315147602,1708889436695,-500.0,0.00023896,2]
[315147603,1708889436704,-834.51,0.00023896,2]
[315147604,1708889436714,-500.0,0.00023896,2]
[315147605,1708889436724,-506.80478483,0.00023896,2]
[315147606,1708889436734,-500.0,0.00023896,2]
[315147607,1708889436745,-500.0,0.00023896,2]
[315147608,1708889436755,-504.66940826,0.00023896,2]
[315147609,1708889436765,-590.57,0.00023896,2]
[315147610,1708889436776,-500.0,0.00023896,2]
[315147611,1708889436786,-500.0,0.00023896,2]
[315147612,1708889436796,-500.0,0.00023896,2]
[315147613,1708889436806,-503.11911842,0.00023896,2]
[315147614,1708889436816,-508.3320334,0.00023896,2]
[315147615,1708889436826,-820.8,0.00023896,2]
[315147616,1708889436836,-500.0,0.00023896,2]
[315147617,1708889436846,-506.28478088,0.00023896,2]
[315147618,1708889436857,-500.0,0.00023896,2]
[315147619,1708889436869,-503.00433172,0.00023896,2]
[315147620,1708889436880,-535.88053337,0.00023896,2]
[315147621,1708889436890,-516.39902045,0.00023896,2]
[315147622,1708889436901,-506.31374384,0.00023896,2]
[315147623,1708889436911,-500.0,0.00023896,2]
[315147624,1708889436923,-500.0,0.00023896,2]
[315147625,1708889436932,-500.0,0.00023896,2]
[315147626,1708889436942,-500.0,0.00023896,2]
[315147627,1708889436952,-503.15338625,0.00023896,2]
[315147628,1708889436963,-500.0,0.00023896,2]
[315147629,1708889436973,-500.0,0.00023896,2]
[315147630,1708889436983,-500.0,0.00023896,2]
[315147631,1708889436992,-514.63547155,0.00023896,2]
[315147632,1708889437002,-500.0,0.00023896,2]
[315147633,1708889437012,-500.0,0.00023896,2]
[315147634,1708889437021,-500.0,0.00023896,2]
[315147635,1708889437031,-500.0,0.00023896,2]
[315147636,1708889437040,-500.0,0.00023896,2]
[315147637,1708889437050,-500.0,0.00023896,2]
[315147638,1708889437059,-500.0,0.00023896,2]
[315147639,1708889437068,-578.67041767,0.00023896,2]
[315147640,1708889437078,-500.0,0.00023896,2]
[315147641,1708889437088,-500.0,0.00023896,2]
[315147642,1708889437097,-500.0,0.00023896,2]
[315147643,1708889437106,-500.0,0.00023896,2]
[315147644,1708889437118,-506.78899119,0.00023896,2]
[315147645,1708889437128,-500.0,0.00023896,2]
[315147646,1708889437137,-500.0,0.00023896,2]
[315147647,1708889437147,-508.08247494,0.00023896,2]
[315147648,1708889437156,-500.0,0.00023896,2]
[315147649,1708889437165,-500.0,0.00023896,2]
[315147650,1708889437175,-500.0,0.00023896,2]
[315147651,1708889437184,-500.0,0.00023896,2]
[315147652,1708889437193,-199.8141586,0.00023896,2]
[315147653,1708889437202,-500.0,0.00023896,2]
[315147654,1708889437212,-500.0,0.00023896,2]
[315147655,1708889437221,-500.0,0.00023896,2]
[315147656,1708889437233,-506.32723958,0.00023896,2]
[315147657,1708889437243,-500.0,0.00023896,2]
[315147658,1708889437253,-542.45,0.00023896,2]
[315147659,1708889437262,-500.0,0.00023896,2]
[315147660,1708889437271,-500.0,0.00023896,2]
[315147661,1708889437282,-230.48426158,0.00023896,2]
[315147662,1708889437588,-272.05530148,0.00023896,2]
[315147663,1708889437597,-509.97,0.00023896,2]
[315147664,1708889437606,-824.71,0.00023896,2]
[315147665,1708889437616,-502.51998748,0.00023896,2]
[315147666,1708889437625,-500.0,0.00023896,2]
[315147670,1708889437635,-505.47716978,0.00023896,2]
[315147673,1708889437644,-500.0,0.00023896,2]
[315147676,1708889437653,-504.18351301,0.00023896,2]
[315147677,1708889437662,-500.0,0.00023896,2]
[315147678,1708889437671,-500.0,0.00023896,2]
[315147679,1708889437680,-228.61481913,0.00023896,2]
[315147681,1708889437692,-61.06648085,0.00023896,2]
[315147683,1708889437701,-505.81081753,0.00023896,2]
[315147684,1708889437710,-500.0,0.00023896,2]
[315147685,1708889437719,-500.0,0.00023896,2]
[315147686,1708889437729,-488.37043697,0.00023896,2]
[315147687,1708889437737,-506.28775484,0.00023896,2]
[315147688,1708889437746,-275.47269845,0.00023896,2]
[315147689,1708889437913,156.89,0.0002285,2]
[315147717,1708889438335,482.36316452,0.00023,2]
[315147731,1708889438519,-156.89,0.00023058,2]
[315147732,1708889438529,-156.89,0.00023266,2]
[315147733,1708889438538,-156.89,0.00023473,2]
[315147734,1708889438547,-156.89,0.00023681,2]
[315147735,1708889438556,-24967.47444626,0.00023798,2]
[315147736,1708889438566,-500.0,0.00023799,2]
[315147737,1708889438575,-500.0,0.00023799,2]
[315147738,1708889438585,-205.0,0.0002387,2]
[315147739,1708889438594,-156.89,0.00023889,2]
[315147740,1708889438603,-1952.0,0.0002389,2]
[315147741,1708889438613,-224.52730155,0.00023896,2]
[315147742,1708889438622,-500.0,0.00023896,2]
[315147743,1708889438631,-500.0,0.00023896,2]
[315147744,1708889438640,-403.38549364,0.00023896,2]
[315147745,1708889438650,-500.0,0.00023896,2]
[315147746,1708889438659,-531.653,0.00023896,2]
[315147747,1708889438668,-500.0,0.00023896,2]
[315147748,1708889438678,-500.0,0.00023896,2]
[315147749,1708889438687,-500.0,0.00023896,2]
[315147750,1708889438696,-561.89147926,0.00023897,2]
[315147751,1708889438705,-500.0,0.00023897,2]
[315147752,1708889438715,-500.0,0.00023897,2]
[315147753,1708889438724,-511.70892093,0.00023897,2]
[315147754,1708889438733,-500.0,0.00023897,2]
[315147755,1708889438742,-500.0,0.00023897,2]
[315147756,1708889438752,-500.0,0.00023897,2]
[315147757,1708889438761,-514.93686514,0.00023897,2]
[315147758,1708889438771,-512.33236075,0.00023897,2]
[315147759,1708889438780,-200.38,0.00023897,2]
[315147760,1708889438789,-500.0,0.00023897,2]
[315147761,1708889438799,-500.0,0.00023897,2]
[315147762,1708889438808,-500.0,0.00023897,2]
[315147763,1708889438817,-500.0,0.00023897,2]
[315147764,1708889438827,-500.0,0.00023897,2]
[315147765,1708889438836,-500.0,0.00023897,2]
[315147766,1708889438845,-500.0,0.00023897,2]
[315147767,1708889438854,-500.0,0.00023897,2]
[315147768,1708889438865,-500.0,0.00023897,2]
[315147769,1708889438874,-500.0,0.00023897,2]
[315147770,1708889438883,-500.0,0.00023897,2]
[315147771,1708889438893,-500.0,0.00023897,2]
[315147772,1708889438902,-500.0,0.00023897,2]
[315147773,1708889438911,-506.61416928,0.00023897,2]
[315147774,1708889438921,-465.64021338,0.00023897,2]
[315147775,1708889438933,-34.35978662,0.00023897,2]
[315147776,1708889438942,-500.0,0.00023897,2]
[315147777,1708889438951,-500.0,0.00023897,2]
[315147778,1708889438961,-500.0,0.00023897,2]
[315147779,1708889438970,-325.90052466,0.00023897,2]
[315147780,1708889438981,-174.09947534,0.00023897,2]
[315147781,1708889438993,-500.0,0.00023897,2]
[315147782,1708889439002,-500.0,0.00023897,2]
[315147783,1708889439011,-500.0,0.00023897,2]
[315147784,1708889439020,-500.0,0.00023897,2]
[315147785,1708889439030,-237.6247716,0.00023897,2]
[315147786,1708889439041,-262.3752284,0.00023897,2]
[315147787,1708889439050,-601.89,0.00023897,2]
[315147788,1708889439059,-500.0,0.00023897,2]
[315147789,1708889439068,-500.0,0.00023897,2]
[315147790,1708889439077,-578.73,0.00023897,2]
[315147791,1708889439087,-500.0,0.00023897,2]
[315147792,1708889439096,-500.0,0.00023897,2]
[315147793,1708889439105,-500.0,0.00023897,2]
[315147794,1708889439117,-592.97,0.00023897,2]
[315147795,1708889439127,-511.46959345,0.00023897,2]
[315147796,1708889439136,-500.0,0.00023897,2]
[315147797,1708889439146,-500.0,0.00023897,2]
[315147798,1708889439155,-500.0,0.00023897,2]
[315147799,1708889439164,-500.0,0.00023897,2]
[315147800,1708889439174,-267.34190844,0.00023897,2]
[315147801,1708889439183,-500.0,0.00023897,2]
[315147802,1708889439193,-500.0,0.00023897,2]
[315147803,1708889439202,-500.0,0.00023897,2]
[315147804,1708889439212,-500.0,0.00023897,2]
[315147805,1708889439221,-500.0,0.00023897,2]
[315147806,1708889439231,-500.0,0.00023897,2]
[315147807,1708889439241,-500.0,0.00023897,2]
[315147808,1708889439253,-500.0,0.00023897,2]
[315147809,1708889439263,-2122.54451544,0.00023897,2]
[315147810,1708889439274,-500.0,0.00023898,2]
[315147811,1708889439283,-500.0,0.00023898,2]
[315147812,1708889439293,-411.3,0.00023898,2]
[315147813,1708889439302,-500.0,0.00023898,2]
[315147814,1708889439312,-500.0,0.00023898,2]
[315147815,1708889439322,-500.0,0.00023898,2]
[315147816,1708889439332,-500.0,0.00023898,2]
[315147817,1708889439342,-500.0,0.00023898,2]
[315147818,1708889439351,-500.0,0.00023898,2]
[315147819,1708889439363,-500.0,0.00023898,2]
[315147820,1708889439372,-500.0,0.00023898,2]
[315147821,1708889439381,-500.0,0.00023898,2]
[315147822,1708889439390,-500.0,0.00023898,2]
[315147823,1708889439399,-500.0,0.00023898,2]
[315147824,1708889439409,-500.0,0.00023898,2]
[315147825,1708889439419,-500.0,0.00023898,2]
[315147826,1708889439428,-428.86,0.00023898,2]
[315147827,1708889439437,-500.0,0.00023898,2]
[315147828,1708889439446,-405.19,0.00023898,2]
[315147829,1708889439455,-834.51,0.00023898,2]
[315147830,1708889439464,-508.2,0.00023898,2]
[315147831,1708889439473,-500.0,0.00023898,2]
[315147832,1708889439482,-422.19,0.00023898,2]
[315147833,1708889439491,-544.87,0.00023898,2]
[315147834,1708889439501,-544.87,0.00023898,2]
[315147835,1708889439510,-500.0,0.00023898,2]
[315147836,1708889439519,-500.0,0.00023898,2]
[315147838,1708889439528,-500.0,0.00023898,2]
[315147839,1708889439537,-820.8,0.00023898,2]
[315147841,1708889439547,-500.0,0.00023898,2]
[315147842,1708889439556,-500.0,0.00023898,2]
[315147843,1708889439565,-500.0,0.00023898,2]
[315147844,1708889439574,-500.0,0.00023898,2]
[315147845,1708889439582,-500.0,0.00023898,2]
[315147846,1708889439593,-500.0,0.00023898,2]
[315147847,1708889439603,-500.0,0.00023898,2]
[315147848,1708889439613,-500.0,0.00023898,2]
[315147849,1708889439622,-500.0,0.00023898,2]
[315147850,1708889439631,-500.0,0.00023898,2]
[315147851,1708889439641,-598.25,0.00023898,2]
[315147852,1708889439650,-214.89,0.00023898,2]
[315147853,1708889439659,-400.66,0.00023898,2]
[315147854,1708889439668,-571.84,0.00023898,2]
[315147855,1708889439678,-571.84,0.00023898,2]
[315147856,1708889439687,-500.0,0.00023898,2]
[315147857,1708889439696,-500.0,0.00023898,2]
[315147858,1708889439705,-500.0,0.00023898,2]
[315147859,1708889439715,-500.0,0.00023898,2]
[315147860,1708889439725,-500.0,0.00023898,2]
[315147861,1708889439734,-500.0,0.00023898,2]
[315147862,1708889439743,-454.62,0.00023898,2]
[315147863,1708889439753,-500.0,0.00023898,2]
[315147864,1708889439762,-500.0,0.00023898,2]
[315147865,1708889439771,-418.55,0.00023898,2]
[315147866,1708889439780,-500.0,0.00023898,2]
[315147867,1708889439790,-345.3,0.00023898,2]
[315147868,1708889439799,-500.0,0.00023898,2]
[315147869,1708889439808,-376.94,0.00023898,2]
[315147870,1708889439817,-500.0,0.00023898,2]
[315147871,1708889439826,-294.6571423,0.00023898,2]
[315147872,1708889439839,-205.3428577,0.00023898,2]
[315147873,1708889439849,-500.0,0.00023898,2]
[315147874,1708889439858,-500.0,0.00023898,2]
[315147875,1708889439870,-500.0,0.00023898,2]
[315147876,1708889439879,-500.0,0.00023898,2]
[315147877,1708889439889,-482.83,0.00023898,2]
[315147878,1708889439898,-500.0,0.00023898,2]
[315147879,1708889439908,-500.0,0.00023898,2]
[315147880,1708889439917,-500.0,0.00023898,2]
[315147881,1708889439927,-255.26,0.00023898,2]
[315147882,1708889439936,-500.0,0.00023898,2]
[315147883,1708889439946,-270.07,0.00023898,2]
[315147884,1708889439956,-500.0,0.00023898,2]
[315147885,1708889439965,-1320.23,0.00023898,2]
[315147886,1708889439974,-1320.23,0.00023898,2]
[315147887,1708889439984,-500.0,0.00023898,2]
[315147888,1708889439993,-500.0,0.00023898,2]
[315147889,1708889440002,-383.17,0.00023898,2]
[315147890,1708889440012,-500.0,0.00023898,2]
[315147891,1708889440022,-500.0,0.00023898,2]
[315147892,1708889440031,-500.0,0.00023898,2]
[315147893,1708889440041,-500.0,0.00023898,2]
[315147894,1708889440051,-617.53,0.00023898,2]
[315147895,1708889440060,-500.0,0.00023898,2]
[315147896,1708889440070,-617.53,0.00023898,2]
[315147897,1708889440079,-542.45,0.00023898,2]
[315147898,1708889440089,-356.73,0.00023898,2]
[315147899,1708889440098,-766.13,0.00023898,2]
[315147900,1708889440108,-766.13,0.00023898,2]
[315147901,1708889440120,-500.0,0.00023898,2]
[315147902,1708889440129,-500.0,0.00023898,2]
[315147903,1708889440138,-287.69,0.00023898,2]
[315147904,1708889440147,-500.0,0.00023898,2]
[315147905,1708889440156,-500.0,0.00023898,2]
[315147906,1708889440165,-500.0,0.00023898,2]
[315147907,1708889440175,-500.0,0.00023898,2]
[315147908,1708889440184,-500.0,0.00023898,2]
[315147909,1708889440194,-500.0,0.00023898,2]
[315147911,1708889440203,-500.0,0.00023898,2]
[315147912,1708889440212,-500.0,0.00023898,2]
[315147914,1708889440221,-500.0,0.00023898,2]
[315147916,1708889440232,-500.0,0.00023898,2]
[315147918,1708889440245,-524.81,0.00023898,2]
[315147919,1708889440254,-340.60960557,0.00023898,2]
[315147920,1708889440263,-500.0,0.00023898,2]
[315147922,1708889440273,-181.46355592,0.00023898,2]
[315147924,1708889440282,-92.82266785,0.00023898,2]
[315147926,1708889440294,-407.17733215,0.00023898,2]
[315147928,1708889440303,-205.68266785,0.00023898,2]
[315147930,1708889440319,-294.31733215,0.00023898,2]
[315147931,1708889440330,-500.0,0.00023898,2]
[315147932,1708889440339,-500.0,0.00023898,2]
[315147933,1708889440349,-500.0,0.00023898,2]
[315147935,1708889440358,-500.0,0.00023898,2]
[315147937,1708889440367,-500.0,0.00023898,2]
[315147939,1708889440376,-500.0,0.00023898,2]
[315147941,1708889440385,-500.0,0.00023898,2]
[315147943,1708889440394,-296.58,0.00023898,2]
[315147945,1708889440402,-500.0,0.00023898,2]
[315147947,1708889440411,-500.0,0.00023898,2]
[315147949,1708889440420,-500.0,0.00023898,2]
[315147951,1708889440429,-361.03433635,0.00023898,2]
[315147953,1708889440438,-500.0,0.00023898,2]
[315147954,1708889440447,-500.0,0.00023898,2]
[315147957,1708889440457,-500.89,0.00023898,2]
[315147959,1708889440466,-500.0,0.00023898,2]
[315147960,1708889440474,-500.0,0.00023898,2]
[315147963,1708889440484,-500.0,0.00023898,2]
[315147964,1708889440493,-500.0,0.00023898,2]
[315147966,1708889440502,-585.0,0.00023898,2]
[315147967,1708889440511,-500.0,0.00023898,2]
[315147968,1708889440520,-500.0,0.00023898,2]
[315147970,1708889440529,-2122.54451544,0.00023899,2]
[315147972,1708889440538,-8184.33129084,0.00023899,4]
[315147974,1708889440549,-3928.0225021,0.00023899,4]
[315147975,1708889440560,-1011.42791006,0.00023899,4]
[315147976,1708889440571,-719.36076778,0.00023899,4]
[315147977,1708889440590,-23717.75701585,0.00023899,4]
[315147978,1708889440600,-509.11055537,0.00023899,2]
[315147979,1708889440609,-503.42697195,0.00023899,2]